[Event "Romanian-ch Open 2022"]
[Site "Eforie Nord"]
[Date "2022.02.20"]
[Round "1.8"]
[White "Manolache, Marius"]
[Black "Sachilaru, Alexandru"]
[Result "*"]
[ECO "D03"]
[WhiteElo "2485"]
[BlackElo "2085"]
[Annotator "RC"]
[PlyCount "22"]
[EventDate "2022.02.20"]
[EventType "swiss"]
[EventCountry "ROU"]
[SourceTitle "playchess.com"]
[Source "ChessBase"]
[SourceQuality "1"]
[TimeControl "40/5400+30:900+30"]

1. d4 {[%emt 0:02:40]} Nf6 {[%emt 0:00:14]} 2. Bg5 {[%emt 0:00:30]} d5 {[%emt 0:00:30]} 3. Nd2 {[%emt 0:00:30]} c5 {[%emt 0:00:30]} 4. e3 {[%emt 0:00:30]} Nc6 {[%emt 0:00:30]} 5. c3 {[%emt 0:00:30]} e6 {[%emt 0:00:30]} 6. Ngf3 {[%emt 0:00:30]} Be7 {[%emt 0:00:30]} 7. Bd3 {[%emt 0:00:30]} h6 {[%emt 0:00:30]} 8. Bxf6 {[%emt 0:00:30]} gxf6 {[%emt 0:00:30]} 9. dxc5 {[%emt 0:00:30]} Bxc5 {[%emt 0:00:30]} 10. e4 {[%emt 0:00:30]} f5 {[%emt 0:00:30]} 11. exd5 {[%emt 0:00:30]} Qxd5 {[%emt 0:00:30]} *

[Event "Romanian-ch Open 2022"]
[Site "Eforie Nord"]
[Date "2022.02.20"]
[Round "1.10"]
[White "Georgescu, Tiberiu-Marian"]
[Black "Ignat, Matei-Marius"]
[Result "1-0"]
[ECO "D02"]
[WhiteElo "2467"]
[BlackElo "2053"]
[Annotator "ChessBase"]
[PlyCount "127"]
[EventDate "2022.02.20"]
[EventType "swiss"]
[EventCountry "ROU"]
[SourceTitle "playchess.com"]
[Source "ChessBase"]
[SourceQuality "1"]
[TimeControl "40/5400+30:900+30"]

1. d4 {[%emt 0:00:59]} Nf6 {[%emt 0:00:07]} 2. Nf3 {[%emt 0:00:05]} g6 {[%emt 0:00:25]} 3. Nbd2 {[%emt 0:00:09]} d5 {[%emt 0:04:16]} 4. b4 {[%emt 0:00:21]} Bg7 {[%emt 0:02:00]} 5. e3 {[%emt 0:00:12]} Bf5 {[%emt 0:02:55]} 6. c4 {[%emt 0:00:19]} c6 {[%emt 0:01:55]} 7. a4 {[%emt 0:00:36]} O-O {[%emt 0:01:38]} 8. Be2 {[%emt 0:00:07]} Ne4 {[%emt 0:05:55]} 9. Bb2 {[%emt 0:00:17]} Nd7 {[%emt 0:15:16]} 10. O-O {[%emt 0:02:34]} Nxd2 {[%emt 0:07:19]} 11. Qxd2 {[%emt 0:01:23]} Nf6 {[%emt 0:09:08]} 12. Rfc1 {[%emt 0:12:26]} Bg4 {[%emt 0:09:12]} 13. h3 {[%emt 0:01:16]} Ne4 {[%emt 0:05:13]} 14. Qc2 {[%emt 0:00:14]} Bxf3 {[%emt 0:00:30]} 15. Bxf3 {[%emt 0:00:15]} f5 {[%emt 0:06:19]} 16. cxd5 {[%emt 0:09:25]} Qxd5 {[%emt 0:01:08]} 17. Be2 {[%emt 0:09:33]} Nd6 {[%emt 0:02:46]} 18. Qd3 {[%emt 0:05:38]} a6 {[%emt 0:03:54]} 19. Rc5 {[%emt 0:02:30]} Qf7 {[%emt 0:00:59]} 20. Rac1 {[%emt 0:02:32]} Rac8 {[%emt 0:04:49]} 21. Bf3 {[%emt 0:05:13]} Bf6 {[%emt 0:03:04]} 22. Ba3 {[%emt 0:03:53]} e6 {[%emt 0:10:04]} 23. R5c2 {[%emt 0:02:23]} Be7 {[%emt 0:01:47]} 24. Qb3 {[%emt 0:05:26]} Rcd8 {[%emt 0:00:26]} 25. g3 {[%emt 0:02:38]} Rd7 {[%emt 0:00:09]} 26. Bg2 {[%emt 0:00:11]} Rfd8 {[%emt 0:00:36]} 27. Bb2 {[%emt 0:01:57]} Bf6 {[%emt 0:00:16]} 28. Kh2 {[%emt 0:00:19]} Kh8 {[%emt 0:01:21]} 29. Rc5 {[%emt 0:03:51]} Re7 {[%emt 0:00:24]} 30. Qc2 {[%emt 0:03:12]} Qg7 {[%emt 0:00:16]} 31. Rd1 {[%emt 0:02:07]} Rde8 {[%emt 0:01:03]} 32. Ba3 {[%emt 0:01:33]} Rd7 {[%emt 0:00:31]} 33. Bb2 {[%emt 0:06:02]} Red8 {[%emt 0:00:19]} 34. Qb3 {[%emt 0:02:20]} Re7 {[%emt 0:00:13]} 35. Rc2 {[%emt 0:01:15]} Qf7 {[%emt 0:00:19]} 36. Rcd2 {[%emt 0:02:25]} Red7 {[%emt 0:00:08]} 37. Qc2 {[%emt 0:01:13]} Qg7 {[%emt 0:00:18]} 38. Qc5 {[%emt 0:01:21]} Kg8 {[%emt 0:00:55]} 39. f3 {[%emt 0:02:35]} Qe7 {[%emt 0:00:45]} 40. e4 {[%emt 0:00:00]} Nf7 {[%emt 0:00:00]} 41. Qc3 {[%emt 0:08:13]} fxe4 {[%emt 0:06:02]} 42. fxe4 {[%emt 0:00:16]} e5 {[%emt 0:00:04]} 43. d5 {[%emt 0:02:38]} cxd5 {[%emt 0:01:59]} 44. exd5 {[%emt 0:00:08]} Nd6 {[%emt 0:01:30]} 45. h4 {[%emt 0:00:48]} Rc7 {[%emt 0:02:10]} 46. Qb3 {[%emt 0:01:55]} Kh8 {[%emt 0:03:17]} 47. Rf1 {[%emt 0:01:45]} Bg7 {[%emt 0:01:10]} 48. Re2 {[%emt 0:00:45]} e4 {[%emt 0:03:59]} 49. Bxg7+ {[%emt 0:01:24]} Qxg7 {[%emt 0:01:11]} 50. Bxe4 {[%emt 0:04:54]} Re7 {[%emt 0:00:00]} 51. Rfe1 {[%emt 0:03:12]} Rde8 {[%emt 0:00:14]} 52. Qd3 {[%emt 0:00:28]} Qf6 {[%emt 0:00:38]} 53. Bg2 {[%emt 0:00:43]} Rxe2 {[%emt 0:00:30]} 54. Rxe2 {[%emt 0:00:03]} Re7 {[%emt 0:00:29]} 55. Re6 {[%emt 0:01:06]} Rxe6 {[%emt 0:00:27]} 56. dxe6 {[%emt 0:00:03]} Qe7 {[%emt 0:00:17]} 57. Qd4+ {[%emt 0:01:08]} Kg8 {[%emt 0:00:01]} 58. Bd5 {[%emt 0:00:22]} h5 {[%emt 0:01:16]} 59. a5 {[%emt 0:01:51]} Kh7 {[%emt 0:00:30]} 60. Qc5 {[%emt 0:00:27]} Qd8 {[%emt 0:00:23]} 61. Qe3 {[%emt 0:01:07]} Qe7 {[%emt 0:00:36]} 62. Qg5 {[%emt 0:00:35]} Qxg5 {[%emt 0:00:36]} 63. hxg5 {[%emt 0:00:03]} Kg7 {[%emt 0:00:06]} 64. e7 {[%emt 0:00:08]} 1-0

[Event "Romanian-ch Open 2022"]
[Site "Eforie Nord"]
[Date "2022.02.20"]
[Round "1.12"]
[White "Ghimpu, Samuel-Timotei"]
[Black "Veress, Armand"]
[Result "1-0"]
[ECO "B01"]
[WhiteElo "2420"]
[BlackElo "2034"]
[Annotator "ChessBase"]
[PlyCount "91"]
[EventDate "2022.02.20"]
[EventType "swiss"]
[EventCountry "ROU"]
[SourceTitle "playchess.com"]
[Source "ChessBase"]
[SourceQuality "1"]
[TimeControl "40/5400+30:900+30"]

1. e4 {[%emt 0:00:08]} d5 {[%emt 0:00:12]} 2. exd5 {[%emt 0:01:05]} Qxd5 {[%emt 0:00:10]} 3. Nc3 {[%emt 0:00:06]} Qd6 {[%emt 0:00:14]} 4. d4 {[%emt 0:01:32]} c6 {[%emt 0:00:14]} 5. Nf3 {[%emt 0:18:17]} Nf6 {[%emt 0:00:45]} 6. Ne5 {[%emt 0:00:28]} Nbd7 {[%emt 0:01:17]} 7. Nc4 {[%emt 0:00:22]} Qc7 {[%emt 0:00:28]} 8. Qf3 {[%emt 0:09:33]} Nb6 {[%emt 0:01:56]} 9. Bf4 {[%emt 0:03:27]} Qd7 {[%emt 0:01:46]} 10. O-O-O {[%emt 0:13:25]} Qg4 {[%emt 0:01:27]} 11. Qxg4 {[%emt 0:00:15]} Bxg4 {[%emt 0:00:13]} 12. f3 {[%emt 0:00:39]} Be6 {[%emt 0:00:46]} 13. Na5 {[%emt 0:02:25]} O-O-O {[%emt 0:05:52]} 14. Be5 {[%emt 0:04:02]} Bf5 {[%emt 0:28:55]} 15. g4 {[%emt 0:17:04]} Bg6 {[%emt 0:01:52]} 16. h4 {[%emt 0:02:24]} h5 {[%emt 0:06:53]} 17. g5 {[%emt 0:00:29]} Ne8 {[%emt 0:33:51]} 18. Ne4 {[%emt 0:02:49]} e6 {[%emt 0:01:27]} 19. a3 {[%emt 0:07:38]} Bxe4 {[%emt 0:06:26]} 20. fxe4 {[%emt 0:00:07]} Bd6 {[%emt 0:01:32]} 21. Bxd6 {[%emt 0:00:24]} Nxd6 {[%emt 0:00:39]} 22. Re1 {[%emt 0:00:14]} Rhe8 {[%emt 0:00:30]} 23. c4 {[%emt 0:00:40]} Nd7 {[%emt 0:01:42]} 24. b4 {[%emt 0:04:22]} Kc7 {[%emt 0:00:40]} 25. c5 {[%emt 0:00:53]} Nc8 {[%emt 0:00:40]} 26. Be2 {[%emt 0:06:27]} b6 {[%emt 0:00:27]} 27. Nc4 {[%emt 0:01:17]} e5 {[%emt 0:00:47]} 28. Bxh5 {[%emt 0:01:44]} g6 {[%emt 0:00:12]} 29. Bg4 {[%emt 0:00:22]} exd4 {[%emt 0:00:32]} 30. Rhf1 {[%emt 0:00:40]} Re7 {[%emt 0:00:47]} 31. Rf4 {[%emt 0:00:57]} bxc5 {[%emt 0:01:35]} 32. Bxd7 {[%emt 0:00:26]} Rdxd7 {[%emt 0:00:33]} 33. bxc5 {[%emt 0:00:02]} d3 {[%emt 0:01:00]} 34. Kd2 {[%emt 0:00:01]} Rd4 {[%emt 0:00:31]} 35. Kc3 {[%emt 0:00:24]} Rd8 {[%emt 0:00:34]} 36. Rd1 {[%emt 0:00:53]} Rde8 {[%emt 0:00:31]} 37. Kxd3 {[%emt 0:00:33]} Rd8+ {[%emt 0:00:32]} 38. Kc2 {[%emt 0:00:19]} Rxd1 {[%emt 0:00:28]} 39. Kxd1 {[%emt 0:00:01]} Kd7 {[%emt 0:00:26]} 40. Kd2 {[%emt 0:00:00]} Ke8 {[%emt 0:00:00]} 41. Ke3 {[%emt 0:00:46]} Rb7 {[%emt 0:11:28]} 42. Rf6 {[%emt 0:00:53]} Rb3+ {[%emt 0:04:05]} 43. Kd4 {[%emt 0:00:06]} Ne7 {[%emt 0:00:27]} 44. Nd6+ {[%emt 0:00:13]} Kd7 {[%emt 0:00:16]} 45. Nxf7 {[%emt 0:00:13]} Rxa3 {[%emt 0:01:45]} 46. Ne5+ {[%emt 0:00:06]} 1-0

[Event "Romanian-ch Open 2022"]
[Site "Eforie Nord"]
[Date "2022.02.20"]
[Round "1.13"]
[White "Mintau, Andrei-Catalin"]
[Black "Stoleriu, George"]
[Result "0-1"]
[ECO "B22"]
[WhiteElo "2029"]
[BlackElo "2419"]
[Annotator "ChessBase"]
[PlyCount "66"]
[EventDate "2022.02.20"]
[EventType "swiss"]
[EventCountry "ROU"]
[SourceTitle "playchess.com"]
[Source "ChessBase"]
[SourceQuality "1"]
[TimeControl "40/5400+30:900+30"]

1. e4 {[%emt 0:00:02]} c5 {[%emt 0:00:08]} 2. Nf3 {[%emt 0:00:05]} a6 {[%emt 0:00:04]} 3. c3 {[%emt 0:00:09]} e6 {[%emt 0:00:28]} 4. d4 {[%emt 0:00:06]} d5 {[%emt 0:01:06]} 5. exd5 {[%emt 0:01:09]} exd5 {[%emt 0:00:18]} 6. Be3 {[%emt 0:02:06]} c4 {[%emt 0:04:21]} 7. Ne5 {[%emt 1:30:23]} Bd6 {[%emt 0:09:16]} 8. Qf3 {[%emt 0:00:00]} Be6 {[%emt 0:20:11]} 9. Nd2 {[%emt 0:00:00]} Qc7 {[%emt 0:10:53]} 10. Qh5 {[%emt 0:00:00]} Nf6 {[%emt 0:10:54]} 11. Qg5 {[%emt 0:00:00]} O-O {[%emt 0:00:04]} 12. f4 {[%emt 0:00:00]} Ne8 {[%emt 0:03:03]} 13. Qh4 {[%emt 0:00:00]} f6 {[%emt 0:01:29]} 14. Nef3 {[%emt 0:00:00]} Nc6 {[%emt 0:00:18]} 15. g3 {[%emt 0:00:00]} Ne7 {[%emt 0:02:20]} 16. Bh3 {[%emt 0:00:00]} Qd7 {[%emt 0:00:36]} 17. Ng1 {[%emt 0:02:56]} Nf5 {[%emt 0:05:15]} 18. Bxf5 {[%emt 0:00:05]} Bxf5 {[%emt 0:00:04]} 19. Ngf3 {[%emt 0:00:38]} Qb5 {[%emt 0:04:03]} 20. b3 {[%emt 0:01:06]} cxb3 {[%emt 0:04:08]} 21. axb3 {[%emt 0:00:02]} Qd3 {[%emt 0:00:12]} 22. Kf2 {[%emt 0:00:11]} Qxc3 {[%emt 0:01:17]} 23. g4 {[%emt 0:01:13]} Be4 {[%emt 0:02:12]} 24. g5 {[%emt 0:01:22]} fxg5 {[%emt 0:01:16]} 25. Qxg5 {[%emt 0:00:17]} Rf5 {[%emt 0:03:12]} 26. Qg3 {[%emt 0:00:48]} Nf6 {[%emt 0:01:45]} 27. Rhg1 {[%emt 0:00:40]} Nh5 {[%emt 0:00:34]} 28. Qg4 {[%emt 0:00:01]} Bxf4 {[%emt 0:00:29]} 29. Bxf4 {[%emt 0:00:09]} Rxf4 {[%emt 0:00:04]} 30. Qxh5 {[%emt 0:00:08]} Qxd2+ {[%emt 0:00:05]} 31. Kg3 {[%emt 0:00:08]} Rxf3+ {[%emt 0:00:09]} 32. Qxf3 {[%emt 0:00:08]} Bxf3 {[%emt 0:00:07]} 33. Kxf3 {[%emt 0:00:03]} Rf8+ {[%emt 0:00:04]} 0-1

[Event "Romanian-ch Open 2022"]
[Site "Eforie Nord"]
[Date "2022.02.20"]
[Round "1.14"]
[White "Badea, Bela"]
[Black "Bobocea, Laurentiu-Vlad"]
[Result "1-0"]
[ECO "A06"]
[WhiteElo "2413"]
[BlackElo "1987"]
[Annotator "ChessBase"]
[PlyCount "59"]
[EventDate "2022.02.20"]
[EventType "swiss"]
[EventCountry "ROU"]
[SourceTitle "playchess.com"]
[Source "ChessBase"]
[SourceQuality "1"]
[TimeControl "40/5400+30:900+30"]

1. Nf3 {[%emt 0:00:03]} d5 {[%emt 0:00:03]} 2. b3 {[%emt 0:00:07]} Bg4 {[%emt 0:00:10]} 3. e3 {[%emt 0:00:05]} e5 {[%emt 0:00:05]} 4. h3 {[%emt 0:00:32]} Bxf3 {[%emt 0:00:29]} 5. Qxf3 {[%emt 0:00:09]} Nf6 {[%emt 0:00:25]} 6. Bb2 {[%emt 0:03:24]} Nbd7 {[%emt 0:01:21]} 7. d3 {[%emt 0:00:34]} Bd6 {[%emt 0:01:05]} 8. e4 {[%emt 0:01:30]} c6 {[%emt 0:09:30]} 9. Nd2 {[%emt 0:00:41]} O-O {[%emt 0:07:26]} 10. g3 {[%emt 0:08:41]} Qe7 {[%emt 0:11:51]} 11. a3 {[%emt 0:00:28]} Rfd8 {[%emt 0:03:22]} 12. Bg2 {[%emt 0:00:48]} a5 {[%emt 0:03:21]} 13. O-O {[%emt 0:00:31]} dxe4 {[%emt 0:04:52]} 14. Nxe4 {[%emt 0:18:54]} Nxe4 {[%emt 0:03:09]} 15. Qxe4 {[%emt 0:00:11]} Re8 {[%emt 0:05:24]} 16. Rfe1 {[%emt 0:01:12]} Qg5 {[%emt 0:09:38]} 17. h4 {[%emt 0:09:35]} Qg6 {[%emt 0:01:14]} 18. Bh3 {[%emt 0:02:53]} Nc5 {[%emt 0:07:13]} 19. Qf3 {[%emt 0:06:01]} Ne6 {[%emt 0:15:58]} 20. Bxe6 {[%emt 0:17:15]} Rxe6 {[%emt 0:03:33]} 21. h5 {[%emt 0:01:01]} Qg5 {[%emt 0:10:51]} 22. Bc1 Qe7 23. Re2 Re8 {[%emt 0:00:00]} 24. Bd2 {[%emt 0:03:34]} Bxa3 {[%emt 0:00:00]} 25. Bxa5 {[%emt 0:00:30]} Bb2 {[%emt 0:00:00]} 26. Ra4 {[%emt 0:00:30]} Bd4 {[%emt 0:00:00]} 27. Bb4 {[%emt 0:00:30]} Bc5 {[%emt 0:00:00]} 28. Bc3 {[%emt 0:00:30]} h6 {[%emt 0:00:00]} 29. Rae4 {[%emt 0:00:30]} Qg5 {[%emt 0:00:00]} 30. Bd2 {[%emt 0:00:30]} 1-0

[Event "Romanian-ch Open 2022"]
[Site "Eforie Nord"]
[Date "2022.02.20"]
[Round "1.15"]
[White "Coicev, Matei-Andrei"]
[Black "Cosma, Ioan"]
[Result "1/2-1/2"]
[ECO "B48"]
[WhiteElo "1970"]
[BlackElo "2396"]
[Annotator "ChessBase"]
[PlyCount "61"]
[EventDate "2022.02.20"]
[EventType "swiss"]
[EventCountry "ROU"]
[SourceTitle "playchess.com"]
[Source "ChessBase"]
[SourceQuality "1"]
[TimeControl "40/5400+30:900+30"]

1. e4 {[%emt 0:00:09]} c5 {[%emt 0:00:11]} 2. Nf3 {[%emt 0:00:28]} Nc6 {[%emt 0:00:16]} 3. d4 {[%emt 0:00:41]} cxd4 {[%emt 0:00:08]} 4. Nxd4 {[%emt 0:00:08]} Qc7 {[%emt 0:00:11]} 5. Nc3 {[%emt 0:00:24]} e6 {[%emt 0:00:10]} 6. Be3 {[%emt 0:00:32]} a6 {[%emt 0:00:18]} 7. g4 {[%emt 0:00:56]} b5 {[%emt 0:00:19]} 8. Nxc6 {[%emt 0:00:47]} Qxc6 {[%emt 0:00:09]} 9. Qd2 {[%emt 0:00:43]} b4 {[%emt 0:00:21]} 10. Ne2 {[%emt 0:00:39]} Qxe4 {[%emt 0:00:14]} 11. Rg1 {[%emt 0:00:11]} Qc4 {[%emt 0:00:06]} 12. Nf4 {[%emt 0:00:35]} Qc7 {[%emt 0:00:15]} 13. O-O-O {[%emt 0:02:40]} Nf6 {[%emt 0:00:44]} 14. Nh5 {[%emt 0:02:51]} Bb7 {[%emt 0:00:29]} 15. Nxf6+ {[%emt 0:10:29]} gxf6 {[%emt 0:00:32]} 16. Bd4 {[%emt 0:00:19]} e5 {[%emt 0:04:32]} 17. Bb6 {[%emt 0:02:54]} Qc6 {[%emt 0:00:45]} 18. Bg2 {[%emt 0:03:08]} d5 {[%emt 0:00:07]} 19. Qxd5 {[%emt 0:13:19]} Qxd5 {[%emt 0:34:00]} 20. Bxd5 {[%emt 0:00:08]} Bxd5 {[%emt 0:02:21]} 21. Rxd5 {[%emt 0:00:11]} Bh6+ {[%emt 0:03:39]} 22. Kb1 {[%emt 0:00:33]} Bf4 {[%emt 0:03:41]} 23. Rgd1 {[%emt 0:00:50]} Kf8 {[%emt 0:09:52]} 24. h3 {[%emt 0:04:12]} Kg7 {[%emt 0:03:31]} 25. Ba5 {[%emt 0:05:38]} h5 {[%emt 0:03:09]} 26. Bxb4 {[%emt 0:07:45]} hxg4 {[%emt 0:00:10]} 27. hxg4 {[%emt 0:00:06]} Rh2 {[%emt 0:00:34]} 28. f3 {[%emt 0:02:49]} Rf2 {[%emt 0:01:35]} 29. R5d3 {[%emt 0:00:56]} Rc8 {[%emt 0:03:58]} 30. c3 {[%emt 0:40:29]} Rh8 {[%emt 0:29:13]} 31. c4 {[%emt 0:00:30]} 1/2-1/2

[Event "Romanian-ch Open 2022"]
[Site "Eforie Nord"]
[Date "2022.02.20"]
[Round "1.16"]
[White "Filip, Lucian-Ioan"]
[Black "Zaim, Marian"]
[Result "1-0"]
[ECO "E92"]
[WhiteElo "2391"]
[BlackElo "1964"]
[Annotator "ChessBase"]
[PlyCount "69"]
[EventDate "2022.02.20"]
[EventType "swiss"]
[EventCountry "ROU"]
[SourceTitle "playchess.com"]
[Source "ChessBase"]
[SourceQuality "1"]
[TimeControl "40/5400+30:900+30"]

1. Nf3 {[%emt 0:00:03]} Nf6 {[%emt 0:00:39]} 2. c4 {[%emt 0:00:21]} g6 {[%emt 0:00:34]} 3. Nc3 {[%emt 0:00:09]} Bg7 {[%emt 0:00:09]} 4. e4 {[%emt 0:00:08]} d6 {[%emt 0:00:02]} 5. d4 {[%emt 0:00:07]} O-O {[%emt 0:00:02]} 6. Be2 {[%emt 0:00:08]} e5 {[%emt 0:01:03]} 7. Be3 {[%emt 0:01:24]} Ng4 {[%emt 0:02:00]} 8. Bg5 {[%emt 0:01:44]} f6 {[%emt 0:00:15]} 9. Bc1 {[%emt 0:06:25]} Nc6 {[%emt 0:02:55]} 10. h3 {[%emt 0:00:10]} Nh6 {[%emt 0:00:35]} 11. d5 {[%emt 0:00:25]} Ne7 {[%emt 0:00:53]} 12. h4 {[%emt 0:00:25]} Nf7 {[%emt 0:12:16]} 13. h5 {[%emt 0:01:32]} f5 {[%emt 0:09:36]} 14. hxg6 {[%emt 0:01:59]} Nxg6 {[%emt 0:01:52]} 15. Qc2 {[%emt 0:12:32]} f4 {[%emt 0:00:51]} 16. Bd2 {[%emt 0:04:30]} Ng5 {[%emt 0:02:43]} 17. Nxg5 {[%emt 0:05:14]} Qxg5 {[%emt 0:00:03]} 18. g3 {[%emt 0:00:07]} Qf6 {[%emt 0:01:55]} 19. O-O-O {[%emt 0:02:44]} Rf7 {[%emt 0:13:41]} 20. Rh2 {[%emt 0:10:47]} a6 {[%emt 0:01:45]} 21. Rdh1 {[%emt 0:00:28]} Bh8 {[%emt 0:05:06]} 22. Rh6 {[%emt 0:14:13]} fxg3 {[%emt 0:04:36]} 23. fxg3 {[%emt 0:00:06]} Bd7 {[%emt 0:10:01]} 24. Kb1 {[%emt 0:06:14]} Raf8 {[%emt 0:02:37]} 25. R6h2 {[%emt 0:09:14]} Qe7 {[%emt 0:02:41]} 26. Nd1 {[%emt 0:02:01]} Bc8 {[%emt 0:07:32]} 27. a3 {[%emt 0:03:26]} Bd7 {[%emt 0:00:18]} 28. Ka2 {[%emt 0:07:40]} Bc8 {[%emt 0:00:18]} 29. Ne3 {[%emt 0:10:44]} Qe8 {[%emt 0:03:09]} 30. Ng4 {[%emt 0:00:00]} Bg7 {[%emt 0:04:27]} 31. Rxh7 {[%emt 0:00:00]} Rd7 {[%emt 0:02:58]} 32. R7h2 {[%emt 0:00:00]} c5 {[%emt 0:00:39]} 33. Bh6 {[%emt 0:00:00]} Rff7 {[%emt 0:03:29]} 34. Bxg7 {[%emt 0:00:00]} Kxg7 {[%emt 0:00:05]} 35. Qd2 {[%emt 0:00:00]} 1-0

[Event "Romanian-ch Open 2022"]
[Site "Eforie Nord"]
[Date "2022.02.20"]
[Round "1.17"]
[White "Radu, David Cr."]
[Black "Toma, Radu-Cristian"]
[Result "0-1"]
[ECO "D00"]
[WhiteElo "1960"]
[BlackElo "2388"]
[Annotator "ChessBase"]
[PlyCount "38"]
[EventDate "2022.02.20"]
[EventType "swiss"]
[EventCountry "ROU"]
[SourceTitle "playchess.com"]
[Source "ChessBase"]
[SourceQuality "1"]
[TimeControl "40/5400+30:900+30"]

1. d4 {[%emt 0:00:05]} d5 {[%emt 0:01:13]} 2. Bf4 {[%emt 0:00:59]} Nf6 {[%emt 0:02:19]} 3. e3 {[%emt 0:01:35]} g6 {[%emt 0:04:02]} 4. Nf3 {[%emt 0:04:27]} Bg7 {[%emt 0:01:49]} 5. Nc3 {[%emt 0:00:59]} a6 {[%emt 0:06:13]} 6. Be2 {[%emt 0:05:32]} b6 {[%emt 0:04:45]} 7. Ne5 {[%emt 0:06:32]} Bb7 {[%emt 0:02:15]} 8. h4 {[%emt 0:02:35]} h5 {[%emt 0:07:26]} 9. Qd2 {[%emt 0:05:59]} c5 {[%emt 0:10:27]} 10. f3 {[%emt 0:18:07]} Nfd7 {[%emt 0:05:35]} 11. O-O-O {[%emt 0:08:54]} e6 {[%emt 0:03:53]} 12. Rh3 {[%emt 0:16:30]} Nxe5 {[%emt 0:12:10]} 13. Bxe5 {[%emt 0:00:16]} Bxe5 {[%emt 0:00:18]} 14. dxe5 {[%emt 0:00:07]} Nd7 {[%emt 0:04:39]} 15. f4 {[%emt 0:02:23]} b5 {[%emt 0:00:37]} 16. Bf3 {[%emt 0:07:27]} Nb6 {[%emt 0:05:33]} 17. g4 {[%emt 0:03:57]} Nc4 {[%emt 0:06:47]} 18. Qe2 {[%emt 0:02:44]} Qa5 {[%emt 0:01:03]} 19. gxh5 {[%emt 0:05:15]} Qb4 {[%emt 0:00:58]} 0-1

[Event "Romanian-ch Open 2022"]
[Site "Eforie Nord"]
[Date "2022.02.20"]
[Round "1.18"]
[White "Doncea, Vladimir"]
[Black "Negrean, Andrei"]
[Result "1-0"]
[ECO "E06"]
[WhiteElo "2367"]
[BlackElo "1941"]
[Annotator "NA"]
[PlyCount "139"]
[EventDate "2022.02.20"]
[EventType "swiss"]
[EventCountry "ROU"]
[SourceTitle "playchess.com"]
[Source "ChessBase"]
[SourceQuality "1"]
[TimeControl "40/5400+30:900+30"]

1. Nf3 {[%emt 0:00:11]} Nf6 {[%emt 0:00:18]} 2. c4 {[%emt 0:00:16]} e6 {[%emt 0:00:25]} 3. g3 {[%emt 0:00:10]} d5 {[%emt 0:00:33]} 4. Bg2 {[%emt 0:00:09]} Be7 {[%emt 0:00:38]} 5. d4 {[%emt 0:00:30]} O-O {[%emt 0:00:23]} 6. Qc2 {[%emt 0:00:07]} c5 {[%emt 0:00:35]} 7. O-O {[%emt 0:00:34] 7.dxc5 is the fancy move.} cxd4 {[%emt 0:00:54]} 8. Nxd4 {[%emt 0:00:06]} e5 {[%emt 0:00:42]} 9. Nf5 {[%emt 0:00:23]} d4 {[%emt 0:01:37]} 10. Nxe7+ {[%emt 0:00:08]} Qxe7 {[%emt 0:00:23]} 11. b3 {[%emt 0:05:39]} Rd8 {[%emt 0:04:22]} 12. Ba3 {[%emt 0:04:33]} Qc7 {[%emt 0:05:22]} 13. Nd2 {[%emt 0:05:16]} Nc6 {[%emt 0:06:37]} 14. Ne4 {[%emt 0:14:19]} Nxe4 {[%emt 0:03:54]} 15. Bxe4 {[%emt 0:02:01]} g6 {[%emt 0:03:35] [#]} 16. f4 $146 {[%emt 0:01:56]} ({Predecessor:} 16. Rad1 Be6 17. f4 f5 18. Bg2 e4 19. Bb2 Rd7 20. e3 Rad8 21. exd4 Nxd4 22. Qf2 {1-0 (51) Hausrath,D (2480)-Engel,L (2532) Playchess.com INT 2020}) 16... f5 {[%emt 0:09:15]} (16... Bh3 $11) 17. Bd5+ {[%emt 0:03:54]} Kg7 {[%emt 0:02:41]} 18. Qd2 {[%emt 0:06:18]} Re8 {[%emt 0:22:53]} 19. Bb2 {[%emt 0:14:21]} Be6 {[%emt 0:05:45]} 20. e3 {[%emt 0:05:21]} Rad8 {[%emt 0:14:37]} 21. Bxc6 {[%emt 0:01:33]} ({Reject} 21. exd4 $6 Bxd5 22. cxd5 Rxd5 $11) (21. Bg2 $16) 21... Qxc6 {[%emt 0:02:27]} 22. exd4 {[%emt 0:00:53]} exd4 {[%emt 0:00:41]} 23. Rad1 {[%emt 0:06:11]} Kf7 {[%emt 0:03:27]} 24. Bxd4 {[%emt 0:01:42]} Rd7 {[%emt 0:01:18]} 25. Qa5 {[%emt 0:02:28]} Qd6 {[%emt 0:07:10]} (25... b5 $16 {keeps fighting.}) 26. Rd2 {[%emt 0:06:12]} (26. Qxa7 $18 Kg8 27. Qa5) 26... b6 {[%emt 0:01:09]} 27. Qc3 {[%emt 0:00:10]} Kg8 {[%emt 0:01:30]} 28. Rfd1 {[%emt 0:01:00]} Red8 $2 {[%emt 0:00:30]} (28... Qc7 $16 {was necessary.} 29. Qe3 Bf7) 29. Re1 {[%emt 0:05:21]} Qc6 {[%emt 0:00:43]} 30. Re3 {[%emt 0:04:59]} (30. Bh8 $18) 30... b5 {[%emt 0:00:32]} 31. c5 {[%emt 0:04:22]} Bd5 {[%emt 0:00:30]} 32. Bf6 {[%emt 0:00:57]} Rc8 {[%emt 0:00:28]} (32... b4 $142 33. Qe5 Bh1 34. Bxd8 (34. Qe7 $2 Rxe7 35. Rxd8+ Kf7 $19) 34... Rxd2 35. Qe8+ Kg7 36. Qe7+ (36. Re7+ Kh6 $16) 36... Kg8 37. Qe8+ Kg7 38. Qe7+ Kg8 39. Qe8+) 33. Red3 {[%emt 0:01:12]} Qxc5+ {[%emt 0:00:33]} 34. Qxc5 {[%emt 0:00:15]} Rxc5 {[%emt 0:00:04]} 35. Kf2 {[%emt 0:00:22]} (35. Bc3 $5 {[%cal Rb3b4]} Kf7 36. b4 $14) 35... Kf7 {[%emt 0:00:51]} 36. Bd4 $1 {[%emt 0:01:20]} Be4 {[%emt 0:00:34]} 37. Bxc5 {[%emt 0:00:09]} Rxd3 {[%emt 0:00:29]} 38. Rxd3 {[%emt 0:00:06]} Bxd3 {[%emt 0:00:04]} 39. Bxa7 {[%emt 0:00:06]} b4 {[%emt 0:00:57]} 40. Ke3 {[%emt 0:00:00]} Bb1 {[%emt 0:00:00]} 41. Kd2 {[%emt 0:00:33]} Ke6 {[%emt 0:02:22]} 42. Kc1 {[%emt 0:20:27]} Bxa2 $2 {[%emt 0:06:27]} (42... Be4 {is tougher.} 43. Bc5 Kd5 44. Bxb4 Kd4) 43. Kb2 {[%emt 0:00:00]} Bxb3 {[%emt 0:00:06]} 44. Kxb3 {[%emt 0:00:00]} Kd5 {[%emt 0:00:13]} 45. Kxb4 {[%emt 0:00:00]} Ke4 $18 {[%emt 0:00:44]} 46. Kc3 {[%emt 0:00:00]} Kf3 {[%emt 0:01:04]} 47. Kd2 {[%emt 0:00:00]} Kg2 {[%emt 0:06:25]} 48. Ke2 {[%emt 0:00:00]} h6 {[%emt 0:01:43]} 49. Bf2 {[%emt 0:00:00]} Kxh2 {[%emt 0:00:35]} 50. Kf3 {[%emt 0:00:00]} Kh3 {[%emt 0:00:50]} 51. Bc5 {[%emt 0:00:00]} Kh2 {[%emt 0:00:32]} 52. Bf8 {[%emt 0:00:00]} g5 {[%emt 0:00:31]} 53. Bxh6 {[%emt 0:00:00]} g4+ {[%emt 0:00:04]} 54. Kf2 {[%emt 0:00:00]} Kh3 {[%emt 0:00:08]} 55. Bg5 {[%emt 0:00:00]} Kh2 {[%emt 0:00:02]} 56. Bh4 {[%emt 0:00:00]} Kh1 {[%emt 0:00:08]} 57. Ke3 {[%emt 0:00:00]} Kg2 {[%emt 0:00:04]} 58. Kd4 {[%emt 0:00:00]} Kf3 {[%emt 0:00:04]} 59. Ke5 {[%emt 0:00:00]} Ke2 {[%emt 0:00:04]} 60. Kxf5 {[%emt 0:00:00]} Kf3 {[%emt 0:00:03]} 61. Kg5 {[%emt 0:00:00]} Ke4 {[%emt 0:00:34]} 62. f5 {[%emt 0:00:00]} Kf3 {[%emt 0:00:05]} 63. f6 {[%emt 0:00:00]} Kg2 {[%emt 0:00:03]} 64. f7 {[%emt 0:00:00]} Kh3 {[%emt 0:00:03]} 65. f8=Q {[%emt 0:00:00]} Kh2 {[%emt 0:00:02]} 66. Kxg4 {[%emt 0:00:00]} Kg2 {[%emt 0:00:02]} 67. Qf3+ {[%emt 0:00:00]} Kg1 {[%emt 0:00:02]} 68. Qe2 {[%emt 0:00:00]} Kh1 {[%emt 0:00:05]} 69. Kh3 {[%emt 0:00:00]} Kg1 {[%emt 0:00:02]} 70. Qe1# {[%emt 0:14:00]} 1-0